fUST/lending_fUST_20250203
["ID","MTS","AMOUNT","RATE_DAILY","PERIOD"]
[351390218,1738551042783,-680.11,0.00016849,2]
[351390219,1738551042793,-539.45,0.00016849,2]
[351390220,1738551042803,-875.5527606,0.00016852,2]
[351390221,1738551042813,-1002.64471772,0.0001688,2]
[351390222,1738551042823,-213.84062571,0.000169,2]
[351390224,1738551042834,-1115.48,0.00016986,2]
[351390226,1738551042843,-518.65607259,0.00016986,2]
[351390227,1738551042854,-500.0,0.00016986,2]
[351390228,1738551042864,-500.0,0.00016986,2]
[351390229,1738551042874,-500.0,0.00016986,2]
[351390230,1738551042884,-500.0,0.00016986,2]
[351390231,1738551042894,-500.0,0.00016986,2]
[351390233,1738551042904,-616.01,0.00016986,2]
[351390235,1738551042914,-500.0,0.00016986,2]
[351390237,1738551042924,-500.0,0.00016986,2]
[351390239,1738551042933,-1000.0,0.00016986,2]
[351390241,1738551042946,-500.0,0.00016986,2]
[351390244,1738551042956,-500.0,0.00016986,2]
[351390246,1738551042966,-500.0,0.00016986,2]
[351390248,1738551042979,-500.0,0.00016986,2]
[351390252,1738551042990,-500.0,0.00016986,2]
[351390256,1738551042999,-597.73,0.00016986,2]
[351390259,1738551043010,-500.0,0.00016986,2]
[351390261,1738551043020,-500.0,0.00016986,2]
[351390264,1738551043030,-600.28446814,0.00016986,2]
[351390266,1738551043041,-500.0,0.00016986,2]
[351390269,1738551043051,-601.4,0.00016986,2]
[351390272,1738551043060,-500.0,0.00016986,2]
[351390275,1738551043071,-500.0,0.00016986,2]
[351390278,1738551043081,-500.0,0.00016986,2]
[351390281,1738551043092,-500.0,0.00016986,2]
[351390285,1738551043102,-534.75477925,0.00016986,2]
[351390290,1738551043113,-500.0,0.00016986,2]
[351390293,1738551043122,-500.0,0.00016986,2]
[351390296,1738551043133,-1454.7,0.00016986,2]
[351390298,1738551043143,-500.0,0.00016986,2]
[351390300,1738551043152,-586.82,0.00016986,2]
[351390302,1738551043162,-3898.11,0.00016986,2]
[351390305,1738551043172,-595.04,0.00016986,2]
[351390309,1738551043182,-940.7,0.00016986,2]
[351390311,1738551043192,-500.0,0.00016986,2]
[351390314,1738551043201,-500.0,0.00016986,2]
[351390317,1738551043211,-7975.66,0.00016986,2]
[351390320,1738551043224,-856.29,0.00016986,2]
[351390323,1738551043234,-639.58,0.00016986,2]
[351390326,1738551043244,-500.0,0.00016986,2]
[351390329,1738551043253,-531.57,0.00016986,2]
[351390332,1738551043262,-1817.94,0.00016986,2]
[351390335,1738551043272,-1084.51,0.00016986,2]
[351390338,1738551043283,-15182.26,0.00016986,2]
[351390341,1738551043292,-934.51,0.00016986,2]
[351390344,1738551043302,-500.0,0.00016986,2]
[351390347,1738551043311,-500.0,0.00016986,2]
[351390350,1738551043321,-900.41,0.00016986,2]
[351390353,1738551043331,-1067.15,0.00016986,2]
[351390368,1738551043416,-600.67,0.00016986,2]
[351390371,1738551043427,-2404.05,0.00016986,2]
[351390374,1738551043436,-623.6,0.00016986,2]
[351390377,1738551043449,-500.0,0.00016986,2]
[351390381,1738551043459,-541.98,0.00016986,2]
[351390383,1738551043468,-500.0,0.00016986,2]
[351390385,1738551043482,-2264.19,0.00016986,2]
[351390387,1738551043492,-500.0,0.00016986,2]
[351390389,1738551043502,-839.22,0.00016986,2]
[351390391,1738551043512,-500.0,0.00016986,2]
[351390393,1738551043522,-500.0,0.00016986,2]
[351390395,1738551043532,-500.0,0.00016986,2]
[351390397,1738551043542,-500.0,0.00016986,2]
[351390399,1738551043552,-500.0,0.00016986,2]
[351390401,1738551043562,-4385.24,0.00016986,2]
[351390403,1738551043572,-500.0,0.00016986,2]
[351390406,1738551043584,-1887.07,0.00016986,2]
[351390408,1738551043594,-7526.91,0.00016986,2]
[351390410,1738551043605,-1517.87,0.00016986,2]
[351390411,1738551043617,-648.9689507,0.00016986,7]
[351390413,1738551043628,-500.0,0.00016986,2]
[351390415,1738551043639,-1895.95,0.00016986,2]
[351390417,1738551043649,-880.8,0.00016986,2]
[351390419,1738551043658,-781.22,0.00016986,2]
[351390421,1738551043669,-443.07677878,0.00016986,2]
[351390423,1738551043680,-500.0,0.00016986,2]
[351390425,1738551043692,-1669.22,0.00016986,2]
[351390428,1738551043704,-288.16068165,0.00016986,2]
[351390431,1738551043717,-500.0,0.00016986,2]
[351390434,1738551043735,-500.0,0.00016986,2]
[351390437,1738551043746,-500.0,0.00016986,2]
[351390439,1738551043756,-500.0,0.00016986,2]
[351390440,1738551043766,-1114.96,0.00016986,2]
[351390441,1738551043776,-500.0,0.00016986,2]
[351390443,1738551043786,-680.11,0.00016986,2]
[351390445,1738551043796,-154.4720971,0.00016986,2]
[351390447,1738551043805,-154.4720971,0.00016986,2]
[351390449,1738551043815,-152.0,0.00017,2]
[351390451,1738551043825,-875.5527606,0.00017023,2]
[351390453,1738551043835,-186.989,0.000171,2]
[351390455,1738551043845,-1115.48,0.00017123,2]
[351390457,1738551043854,-500.0,0.00017123,2]
[351390459,1738551043864,-500.0,0.00017123,2]
[351390461,1738551043874,-361.16290934,0.00017123,2]
[351390462,1738551043884,-500.0,0.00017123,2]
[351390463,1738551043894,-500.0,0.00017123,2]
[351390464,1738551043904,-995.24951401,0.00017123,2]
[351390465,1738551043915,-500.0,0.00017123,2]
[351390466,1738551043924,-500.0,0.00017123,2]
[351390467,1738551043934,-500.0,0.00017123,2]
[351390468,1738551043944,-500.0,0.00017123,2]
[351390469,1738551043954,-597.73,0.00017123,2]
[351390470,1738551043965,-500.0,0.00017123,2]
[351390471,1738551043979,-500.0,0.00017123,2]
[351390472,1738551043989,-601.4,0.00017123,2]
[351390473,1738551043999,-500.0,0.00017123,2]
[351390474,1738551044008,-500.0,0.00017123,2]
[351390475,1738551044018,-500.0,0.00017123,2]
[351390476,1738551044028,-500.0,0.00017123,2]
[351390477,1738551044037,-1454.7,0.00017123,2]
[351390478,1738551044047,-500.0,0.00017123,2]
[351390479,1738551044056,-586.82,0.00017123,2]
[351390480,1738551044066,-3898.11,0.00017123,2]
[351390481,1738551044076,-595.04,0.00017123,2]
[351390482,1738551044085,-940.7,0.00017123,2]
[351390483,1738551044095,-500.0,0.00017123,2]
[351390484,1738551044105,-500.0,0.00017123,2]
[351390485,1738551044114,-7975.66,0.00017123,2]
[351390486,1738551044123,-856.29,0.00017123,2]
[351390487,1738551044133,-531.57,0.00017123,2]
[351390488,1738551044143,-1817.94,0.00017123,2]
[351390489,1738551044152,-1084.51,0.00017123,2]
[351390490,1738551044162,-15182.26,0.00017123,2]
[351390491,1738551044172,-934.51,0.00017123,2]
[351390492,1738551044182,-500.0,0.00017123,2]
[351390493,1738551044191,-633.53,0.00017123,2]
[351390494,1738551044202,-900.41,0.00017123,2]
[351390495,1738551044212,-1067.15,0.00017123,2]
[351390496,1738551044224,-600.67,0.00017123,2]
[351390497,1738551044233,-2404.05,0.00017123,2]
[351390498,1738551044243,-623.6,0.00017123,2]
[351390499,1738551044253,-500.0,0.00017123,2]
[351390500,1738551044263,-541.98,0.00017123,2]
[351390501,1738551044272,-2264.19,0.00017123,2]
[351390502,1738551044282,-337.82205911,0.00017123,2]
[351390503,1738551044292,-839.22,0.00017123,2]
[351390504,1738551044301,-500.0,0.00017123,2]
[351390505,1738551044311,-500.0,0.00017123,2]
[351390506,1738551044320,-500.0,0.00017123,2]
[351390507,1738551044330,-510.14,0.00017123,2]
[351390508,1738551044340,-500.0,0.00017123,2]
[351390509,1738551044350,-4385.24,0.00017123,2]
[351390511,1738551044360,-500.0,0.00017123,2]
[351390512,1738551044371,-1887.07,0.00017123,2]
[351390513,1738551044382,-7526.91,0.00017123,2]
[351390514,1738551044392,-1517.87,0.00017123,2]
[351390515,1738551044405,-500.0,0.00017123,2]
[351390516,1738551044415,-1895.95,0.00017123,2]
[351390517,1738551044425,-880.8,0.00017123,2]
[351390518,1738551044439,-781.22,0.00017123,2]
[351390519,1738551044449,-500.0,0.00017123,2]
[351390520,1738551044459,-1669.22,0.00017123,2]
[351390521,1738551044470,-500.0,0.00017123,2]
[351390522,1738551044484,-500.0,0.00017123,2]
[351390523,1738551044493,-500.0,0.00017123,2]
[351390524,1738551044503,-500.0,0.00017123,2]
[351390525,1738551044513,-1114.96,0.00017123,2]
[351390526,1738551044523,-500.0,0.00017123,2]
[351390527,1738551044532,-680.11,0.00017123,2]
[351390528,1738551044542,-505.22537676,0.00017189,2]
[351390530,1738551044552,-500.0,0.00017189,2]
[351390531,1738551044562,-500.0,0.00017189,2]
[351390532,1738551044572,-12511.6032248,0.00017193,2]
[351390533,1738551044581,-1115.48,0.0001726,2]
[351390534,1738551044590,-547.68,0.0001726,2]
[351390535,1738551044600,-500.0,0.0001726,2]
[351390536,1738551044609,-500.0,0.0001726,2]
[351390537,1738551044618,-500.0,0.0001726,2]
[351390538,1738551044627,-500.0,0.0001726,2]
[351390539,1738551044636,-500.0,0.0001726,2]
[351390540,1738551044646,-500.0,0.0001726,2]
[351390541,1738551044655,-500.0,0.0001726,2]
[351390542,1738551044664,-597.73,0.0001726,2]
[351390543,1738551044673,-500.0,0.0001726,2]
[351390544,1738551044682,-500.0,0.0001726,2]
[351390545,1738551044692,-601.4,0.0001726,2]
[351390546,1738551044701,-500.0,0.0001726,2]
[351390547,1738551044711,-400.47542433,0.0001726,2]
[351390548,1738551044720,-500.0,0.0001726,2]
[351390549,1738551044733,-500.0,0.0001726,2]
[351390550,1738551044742,-1454.7,0.0001726,2]
[351390551,1738551044751,-500.0,0.0001726,2]
[351390552,1738551044760,-586.82,0.0001726,2]
[351390553,1738551044770,-3898.11,0.0001726,2]
[351390554,1738551044779,-595.04,0.0001726,2]
[351390555,1738551044788,-940.7,0.0001726,2]
[351390556,1738551044798,-500.0,0.0001726,2]
[351390557,1738551044807,-500.0,0.0001726,2]
[351390558,1738551044817,-7975.66,0.0001726,2]
[351390559,1738551044826,-856.29,0.0001726,2]
[351390560,1738551044835,-1817.94,0.0001726,2]
[351390561,1738551044844,-531.57,0.0001726,2]
[351390562,1738551044853,-1084.51,0.0001726,2]
[351390563,1738551044863,-15182.26,0.0001726,2]
[351390564,1738551044872,-934.51,0.0001726,2]
[351390565,1738551044881,-500.0,0.0001726,2]
[351390566,1738551044892,-900.41,0.0001726,2]
[351390568,1738551044901,-1067.15,0.0001726,2]
[351390569,1738551044911,-600.67,0.0001726,2]
[351390570,1738551044920,-2404.05,0.0001726,2]
[351390571,1738551044930,-623.6,0.0001726,2]
[351390572,1738551044939,-500.0,0.0001726,2]
[351390573,1738551045022,-541.98,0.0001726,2]
[351390574,1738551045033,-2264.19,0.0001726,2]
[351390575,1738551045043,-839.22,0.0001726,2]
[351390576,1738551045052,-500.0,0.0001726,2]
[351390577,1738551045062,-500.0,0.0001726,2]
[351390578,1738551045071,-500.0,0.0001726,2]
[351390579,1738551045082,-500.0,0.0001726,2]
[351390580,1738551045091,-4385.24,0.0001726,2]
[351390581,1738551045101,-213.87471157,0.0001726,2]
[351390582,1738551045110,-1887.07,0.0001726,2]
[351390583,1738551045120,-7526.91,0.0001726,2]
[351390584,1738551045129,-1517.87,0.0001726,2]
[351390585,1738551045139,-500.0,0.0001726,2]
[351390586,1738551045148,-1895.95,0.0001726,2]
[351390587,1738551045158,-880.8,0.0001726,2]
[351390588,1738551045167,-781.22,0.0001726,2]
[351390589,1738551045176,-500.0,0.0001726,2]
[351390590,1738551045185,-1669.22,0.0001726,2]
[351390591,1738551045194,-500.0,0.0001726,2]
[351390592,1738551045204,-367.5427801,0.0001726,2]
[351390593,1738551045214,-349.10131448,0.0001726,2]
[351390594,1738551045227,-492.90446542,0.0001726,2]
[351390595,1738551045237,-1114.96,0.0001726,2]
[351390596,1738551045246,-500.0,0.0001726,2]
[351390597,1738551045255,-680.11,0.0001726,2]
[351390598,1738551045265,-767.3860199,0.00017279,2]
[351390599,1738551045275,-151.0,0.000173,2]
[351390600,1738551045285,-500.0,0.00017328,2]
[351390601,1738551045295,-150.467,0.00017386,2]
[351390602,1738551045305,-537.0,0.00017386,2]
[351390603,1738551045314,-2039.0,0.00017386,2]
[351390604,1738551045323,-2300.0,0.00017386,2]
[351390605,1738551045333,-150.0,0.00017386,2]
[351390606,1738551045342,-150.186,0.00017386,2]
[351390607,1738551045352,-1115.48,0.00017397,2]
[351390608,1738551045361,-500.0,0.00017397,2]
[351390609,1738551045370,-309.56382697,0.00017397,2]
[351390610,1738551045379,-500.0,0.00017397,2]
[351390611,1738551045389,-500.0,0.00017397,2]
[351390612,1738551045401,-500.0,0.00017397,2]
[351390613,1738551045411,-500.0,0.00017397,2]
[351390614,1738551045421,-597.73,0.00017397,2]
[351390615,1738551045430,-500.0,0.00017397,2]
[351390616,1738551045442,-279.62031865,0.00017397,2]
[351390617,1738551045451,-601.4,0.00017397,2]
[351390618,1738551045461,-500.0,0.00017397,2]
[351390619,1738551045470,-500.0,0.00017397,2]
[351390620,1738551045484,-500.0,0.00017397,2]
[351390622,1738551045494,-1454.7,0.00017397,2]
[351390623,1738551045503,-586.82,0.00017397,2]
[351390624,1738551045512,-500.0,0.00017397,2]
[351390625,1738551045522,-3898.11,0.00017397,2]
[351390626,1738551045531,-595.04,0.00017397,2]
[351390627,1738551045541,-940.7,0.00017397,2]
[351390628,1738551045550,-203.86057762,0.00017397,2]
[351390629,1738551045559,-500.0,0.00017397,2]
[351390630,1738551045569,-7975.66,0.00017397,2]
[351390631,1738551045578,-856.29,0.00017397,2]
[351390632,1738551045587,-1817.94,0.00017397,2]
[351390633,1738551045596,-531.57,0.00017397,2]
[351390634,1738551045606,-1084.51,0.00017397,2]
[351390635,1738551045616,-15182.26,0.00017397,2]
[351390636,1738551045625,-934.51,0.00017397,2]
[351390637,1738551045635,-500.0,0.00017397,2]
[351390638,1738551045644,-900.41,0.00017397,2]
[351390639,1738551045654,-1067.15,0.00017397,2]
[351390640,1738551045664,-600.67,0.00017397,2]
[351390641,1738551045674,-2404.05,0.00017397,2]
[351390642,1738551045683,-623.6,0.00017397,2]
[351390643,1738551045693,-500.0,0.00017397,2]
[351390644,1738551045702,-541.98,0.00017397,2]
[351390645,1738551045712,-2264.19,0.00017397,2]
[351390646,1738551045721,-839.22,0.00017397,2]
[351390647,1738551045736,-500.0,0.00017397,2]
[351390648,1738551045745,-645.45,0.00017397,2]
[351390649,1738551045755,-500.0,0.00017397,2]
[351390650,1738551045766,-500.0,0.00017397,2]
[351390651,1738551045775,-4385.24,0.00017397,2]
[351390652,1738551045785,-1887.07,0.00017397,2]
[351390653,1738551045795,-7526.91,0.00017397,2]
[351390654,1738551045805,-1517.87,0.00017397,2]
[351390655,1738551045815,-500.0,0.00017397,2]
[351390656,1738551045825,-1895.95,0.00017397,2]
[351390657,1738551045835,-880.8,0.00017397,2]
[351390659,1738551045844,-781.22,0.00017397,2]
[351390661,1738551045853,-500.0,0.00017397,2]
[351390662,1738551045863,-1669.22,0.00017397,2]
[351390663,1738551045872,-500.0,0.00017397,2]
[351390664,1738551045881,-1114.96,0.00017397,2]
[351390665,1738551045891,-500.0,0.00017397,2]
[351390666,1738551045901,-680.11,0.00017397,2]
[351390667,1738551045911,-151.0,0.000174,2]
[351390668,1738551045921,-151.0,0.000174,2]
[351390669,1738551045931,-5000.0,0.000175,2]
[351390670,1738551045941,-151.0,0.000175,2]
[351390672,1738551045951,-1115.48,0.00017534,2]
[351390673,1738551045960,-500.0,0.00017534,2]
[351390674,1738551045970,-500.0,0.00017534,2]
[351390675,1738551045986,-500.0,0.00017534,2]
[351390676,1738551045996,-500.0,0.00017534,2]
[351390677,1738551046006,-257.17410142,0.00017534,2]
[351390678,1738551046016,-597.73,0.00017534,2]
[351390679,1738551046026,-500.0,0.00017534,2]
[351390680,1738551046036,-601.4,0.00017534,2]
[351390681,1738551046046,-500.0,0.00017534,2]
[351390682,1738551046056,-500.0,0.00017534,2]
[351390683,1738551046065,-500.0,0.00017534,2]
[351390684,1738551046075,-1454.7,0.00017534,2]
[351390685,1738551046085,-586.82,0.00017534,2]
[351390686,1738551046095,-500.0,0.00017534,2]
[351390687,1738551046105,-3898.11,0.00017534,2]
[351390688,1738551046114,-595.04,0.00017534,2]
[351390689,1738551046123,-940.7,0.00017534,2]
[351390690,1738551046133,-500.0,0.00017534,2]
[351390691,1738551046142,-7975.66,0.00017534,2]
[351390692,1738551046151,-856.29,0.00017534,2]
[351390693,1738551046161,-1817.94,0.00017534,2]
[351390694,1738551046171,-531.57,0.00017534,2]
[351390695,1738551046180,-1084.51,0.00017534,2]
[351390696,1738551046191,-15182.26,0.00017534,2]
[351390697,1738551046200,-934.51,0.00017534,2]
[351390698,1738551046210,-500.0,0.00017534,2]
[351390699,1738551046219,-900.41,0.00017534,2]
[351390700,1738551046234,-1067.15,0.00017534,2]
[351390701,1738551046243,-600.67,0.00017534,2]
[351390702,1738551046253,-2404.05,0.00017534,2]
[351390703,1738551046263,-623.6,0.00017534,2]
[351390704,1738551046273,-500.0,0.00017534,2]
[351390705,1738551046282,-541.98,0.00017534,2]
[351390706,1738551046292,-2264.19,0.00017534,2]
[351390707,1738551046302,-839.22,0.00017534,2]
[351390708,1738551046311,-500.0,0.00017534,2]
[351390709,1738551046321,-500.0,0.00017534,2]
[351390710,1738551046331,-500.0,0.00017534,2]
[351390711,1738551046341,-4385.24,0.00017534,2]
[351390712,1738551046351,-1887.07,0.00017534,2]
[351390713,1738551046361,-7526.91,0.00017534,2]
[351390714,1738551046371,-1517.87,0.00017534,2]
[351390715,1738551046381,-500.0,0.00017534,2]
[351390717,1738551046390,-1895.95,0.00017534,2]
[351390721,1738551046472,-781.22,0.00017534,2]
[351390723,1738551046486,-880.8,0.00017534,2]
[351390725,1738551046496,-500.0,0.00017534,2]
[351390727,1738551046507,-1669.22,0.00017534,2]
[351390729,1738551046516,-500.0,0.00017534,2]
[351390731,1738551046525,-1114.96,0.00017534,2]
[351390732,1738551046535,-400.60640714,0.00017534,2]
[351390734,1738551046547,-160.0,0.00017546,6]
[351390736,1738551046557,-478.92831203,0.00017645,2]
[351390738,1738551046566,-613.506,0.00017667,2]
[351390740,1738551046576,-151.0,0.00017671,2]
[351390742,1738551046585,-1115.48,0.00017671,2]
[351390743,1738551046595,-500.0,0.00017671,2]
[351390745,1738551046604,-549.39991985,0.00017671,2]
[351390747,1738551046614,-500.0,0.00017671,2]
[351390749,1738551046623,-500.0,0.00017671,2]
[351390751,1738551046632,-597.73,0.00017671,2]
[351390752,1738551046641,-601.4,0.00017671,2]
[351390754,1738551046650,-500.0,0.00017671,2]
[351390756,1738551046660,-500.0,0.00017671,2]
[351390758,1738551046670,-500.0,0.00017671,2]
[351390760,1738551046680,-1454.7,0.00017671,2]
[351390761,1738551046690,-586.82,0.00017671,2]
[351390763,1738551046701,-500.0,0.00017671,2]
[351390765,1738551046712,-3898.11,0.00017671,2]
[351390767,1738551046721,-595.04,0.00017671,2]
[351390769,1738551046735,-940.7,0.00017671,2]
[351390770,1738551046744,-500.0,0.00017671,2]
[351390772,1738551046754,-7975.66,0.00017671,2]
[351390774,1738551046763,-856.29,0.00017671,2]
[351390776,1738551046774,-531.57,0.00017671,2]
[351390778,1738551046784,-1817.94,0.00017671,2]
[351390779,1738551046795,-1084.51,0.00017671,2]
[351390781,1738551046806,-15182.26,0.00017671,2]
[351390783,1738551046817,-934.51,0.00017671,2]
[351390785,1738551046826,-500.0,0.00017671,2]
[351390787,1738551046836,-900.41,0.00017671,2]
[351390789,1738551046846,-1067.15,0.00017671,2]
[351390790,1738551046856,-600.67,0.00017671,2]
[351390792,1738551046865,-2404.05,0.00017671,2]
[351390794,1738551046876,-623.6,0.00017671,2]
[351390796,1738551046885,-500.0,0.00017671,2]
[351390798,1738551046895,-541.98,0.00017671,2]
[351390799,1738551046904,-2264.19,0.00017671,2]
[351390801,1738551046914,-839.22,0.00017671,2]
[351390803,1738551046924,-500.0,0.00017671,2]
[351390805,1738551046933,-500.0,0.00017671,2]
[351390807,1738551046943,-319.02445463,0.00017671,2]
[351390809,1738551046952,-4385.24,0.00017671,2]
[351390810,1738551046962,-1887.07,0.00017671,2]
[351390812,1738551046972,-7526.91,0.00017671,2]
[351390814,1738551046986,-1517.87,0.00017671,2]
[351390816,1738551046996,-500.0,0.00017671,2]
[351390818,1738551047006,-1895.95,0.00017671,2]
[351390820,1738551047016,-781.22,0.00017671,2]
[351390822,1738551047026,-880.8,0.00017671,2]
[351390824,1738551047036,-500.0,0.00017671,2]
[351390826,1738551047045,-1669.22,0.00017671,2]
[351390828,1738551047055,-500.0,0.00017671,2]
[351390830,1738551047064,-1114.96,0.00017671,2]
[351390832,1738551047075,-160.0,0.00017697,7]
[351390834,1738551047085,-16066.88353968,0.000177,2]
[351390836,1738551047094,-151.0,0.000177,2]
[351390838,1738551047104,-823.04434729,0.00017718,2]
[351390840,1738551047113,-1000.0,0.00017737,2]
[351390842,1738551047122,-277.0,0.0001776,2]
[351390843,1738551047131,-153.293601,0.00017774,3]
[351390844,1738551047140,-1200.0,0.00017792,2]
[351390845,1738551047150,-5456.39493464,0.00017799,2]
[351390846,1738551047160,-6158.29290672,0.00017799,2]
[351390847,1738551047169,-163.0,0.000178,2]
[351390848,1738551047179,-164.08,0.000178,2]
[351390849,1738551047189,-153.0,0.000178,2]
[351390850,1738551047199,-154.99,0.000178,2]
[351390851,1738551047209,-151.0,0.000178,2]
[351390852,1738551047219,-934.0,0.000178,7]
[351390853,1738551047232,-2114.54,0.000178,2]
[351390854,1738551047242,-1115.48,0.00017808,2]
[351390855,1738551047252,-500.0,0.00017808,2]
[351390856,1738551047262,-500.0,0.00017808,2]
[351390857,1738551047273,-500.0,0.00017808,2]
[351390858,1738551047283,-597.73,0.00017808,2]
[351390859,1738551047293,-601.4,0.00017808,2]
[351390860,1738551047303,-500.0,0.00017808,2]
[351390861,1738551047313,-500.0,0.00017808,2]
[351390862,1738551047323,-1454.7,0.00017808,2]
[351390863,1738551047333,-586.82,0.00017808,2]
[351390864,1738551047343,-500.0,0.00017808,2]
[351390865,1738551047352,-3898.11,0.00017808,2]
[351390866,1738551047362,-595.04,0.00017808,2]
[351390867,1738551047371,-940.7,0.00017808,2]
[351390868,1738551047381,-500.0,0.00017808,2]
[351390869,1738551047391,-7975.66,0.00017808,2]
[351390870,1738551047403,-856.29,0.00017808,2]
[351390871,1738551047412,-531.57,0.00017808,2]
[351390872,1738551047422,-1817.94,0.00017808,2]
[351390873,1738551047435,-1084.51,0.00017808,2]
[351390874,1738551047446,-15182.26,0.00017808,2]
[351390875,1738551047456,-934.51,0.00017808,2]
[351390876,1738551047465,-500.0,0.00017808,2]
[351390877,1738551047478,-900.41,0.00017808,2]
[351390878,1738551047488,-1067.15,0.00017808,2]
[351390879,1738551047499,-600.67,0.00017808,2]
[351390880,1738551047509,-2404.05,0.00017808,2]
[351390881,1738551047521,-623.6,0.00017808,2]
[351390882,1738551047530,-500.0,0.00017808,2]
[351390883,1738551047540,-541.98,0.00017808,2]
[351390884,1738551047550,-2264.19,0.00017808,2]
[351390885,1738551047559,-839.22,0.00017808,2]
[351390887,1738551047569,-500.0,0.00017808,2]
[351390888,1738551047579,-500.0,0.00017808,2]
[351390889,1738551047588,-4385.24,0.00017808,2]
[351390890,1738551047598,-1887.07,0.00017808,2]
[351390891,1738551047607,-7526.91,0.00017808,2]
[351390893,1738551047616,-1517.87,0.00017808,2]
[351390894,1738551047626,-500.0,0.00017808,2]
[351390896,1738551047635,-1895.95,0.00017808,2]
[351390899,1738551047644,-781.22,0.00017808,2]
[351390901,1738551047654,-880.8,0.00017808,2]
[351390903,1738551047663,-500.0,0.00017808,2]
[351390904,1738551047672,-1669.22,0.00017808,2]
[351390907,1738551047682,-500.0,0.00017808,2]
[351390909,1738551047691,-1114.96,0.00017808,2]
[351390910,1738551047701,-343.8989068,0.00017818,2]
[351390913,1738551047712,-22597.17839438,0.00017819,2]
[351390914,1738551047722,-1000.0,0.00017823,2]
[351390915,1738551047734,-160.0,0.00017848,8]
[351390916,1738551047744,-167.09,0.00017885,2]
[351390918,1738551047753,-153.0,0.00017885,2]
[351390919,1738551047829,-153.0,0.00017885,2]
[351390920,1738551047839,-153.0,0.00017885,2]
[351390921,1738551047848,-153.0,0.00017885,2]
[351390922,1738551047857,-153.0,0.00017885,2]
[351390923,1738551047867,-153.0,0.00017885,2]
[351390924,1738551047876,-153.0,0.00017885,2]
[351390925,1738551047886,-153.0,0.00017885,2]
[351390926,1738551047896,-2399.13213671,0.0001789,2]
[351390927,1738551047906,-909.15583223,0.00017897,2]
[351390928,1738551047915,-909.15583221,0.00017897,2]
[351390929,1738551047924,-909.15583221,0.00017898,2]
[351390930,1738551047935,-909.15583221,0.00017898,2]
[351390931,1738551047944,-909.15583221,0.00017898,2]
[351390932,1738551047954,-909.15583221,0.00017899,2]
[351390933,1738551047964,-151.0,0.00017899,2]
[351390934,1738551047973,-909.15583221,0.00017899,2]
[351390935,1738551047986,-909.15583221,0.00017899,2]
[351390936,1738551047996,-909.15583221,0.000179,2]
[351390937,1738551048006,-2000.0,0.000179,2]
[351390938,1738551048016,-2000.0,0.000179,2]
[351390939,1738551048026,-2000.0,0.000179,2]
[351390940,1738551048036,-2000.0,0.000179,2]
[351390941,1738551048046,-151.0,0.000179,2]
[351390942,1738551048056,-157.0,0.000179,2]